[Event "*** SCC Grand Prix: Titled Tuesday Blitz"]
[Site "Chess.com"]
[Date "2020.09.08"]
[Round "1"]
[White "lacafi"]
[Black "Sashadav97"]
[Result "0-1"]
[WhiteElo "2155"]
[BlackElo "2523"]
[TimeControl "180+1"]
[EndTime "10:09:06 PDT"]
[Termination "Sashadav97 won by resignation"]

1. d4 {[%clk 0:03:00.9]} 1... Nf6 {[%clk 0:02:56.7]} 2. Nf3 {[%clk 0:03:00.8]}
2... e6 {[%clk 0:02:56.3]} 3. e3 {[%clk 0:03:00.6]} 3... b6 {[%clk 0:02:55.8]}
4. Bd3 {[%clk 0:03:01.1]} 4... Bb7 {[%clk 0:02:56.3]} 5. Nbd2 {[%clk 0:03:01.6]}
5... d5 {[%clk 0:02:53]} 6. Qe2 {[%clk 0:03:01.6]} 6... Be7 {[%clk 0:02:43.1]}
7. O-O {[%clk 0:03:00.3]} 7... c5 {[%clk 0:02:40.3]} 8. c3 {[%clk 0:02:59.9]}
8... Nc6 {[%clk 0:02:40.2]} 9. dxc5 {[%clk 0:02:56.2]} 9... bxc5 {[%clk
0:02:39.3]} 10. e4 {[%clk 0:02:56.8]} 10... O-O {[%clk 0:02:34.4]} 11. Re1
{[%clk 0:02:52.2]} 11... Re8 {[%clk 0:02:30]} 12. e5 {[%clk 0:02:44]} 12... Nd7
{[%clk 0:02:29.8]} 13. Nf1 {[%clk 0:02:37.5]} 13... Nf8 {[%clk 0:02:29.8]} 14.
Ng3 {[%clk 0:02:31.2]} 14... Qc7 {[%clk 0:02:29.1]} 15. Bg5 {[%clk 0:02:09]}
15... Bxg5 {[%clk 0:02:19.2]} 16. Nxg5 {[%clk 0:02:08.2]} 16... h6 {[%clk
0:02:15.1]} 17. Nf3 {[%clk 0:02:06.7]} 17... Rab8 {[%clk 0:02:14.6]} 18. Qe3
{[%clk 0:01:48.4]} 18... Ne7 {[%clk 0:02:09.9]} 19. b3 {[%clk 0:01:41.1]} 19...
Nfg6 {[%clk 0:02:03.4]} 20. h4 {[%clk 0:01:39.1]} 20... d4 {[%clk 0:02:00.1]}
21. cxd4 {[%clk 0:01:33.3]} 21... Nd5 {[%clk 0:01:51.2]} 22. Qd2 {[%clk
0:01:25.5]} 22... cxd4 {[%clk 0:01:40.1]} 23. Bxg6 {[%clk 0:01:11.6]} 23... fxg6
{[%clk 0:01:41]} 24. Nxd4 {[%clk 0:01:11.1]} 24... Rbd8 {[%clk 0:01:34.5]} 25.
Rac1 {[%clk 0:00:33.7]} 25... Qe7 {[%clk 0:01:23.4]} 26. Nf3 {[%clk 0:00:33.1]}
26... Qf8 {[%clk 0:01:09.4]} 27. Qc2 {[%clk 0:00:23.2]} 27... Nf4 {[%clk
0:01:07.2]} 28. Ne4 {[%clk 0:00:20.2]} 28... Nd3 {[%clk 0:01:02.7]} 29. Nd6
{[%clk 0:00:16.4]} 29... Bxf3 {[%clk 0:00:58]} 30. Nxe8 {[%clk 0:00:11.8]} 30...
Nxe1 {[%clk 0:00:49.5]} 31. Rxe1 {[%clk 0:00:10.7]} 31... Rxe8 {[%clk
0:00:49.7]} 32. gxf3 {[%clk 0:00:09.3]} 32... Qf7 {[%clk 0:00:46]} 33. Qe4
{[%clk 0:00:08]} 33... Rf8 {[%clk 0:00:45.5]} 34. Kg2 {[%clk 0:00:07.8]} 34...
Kh8 {[%clk 0:00:42.2]} 35. Rd1 {[%clk 0:00:06.6]} 35... Qe7 {[%clk 0:00:39.8]}
36. Rd6 {[%clk 0:00:06.4]} 36... Rf5 {[%clk 0:00:38.5]} 37. f4 {[%clk
0:00:04.5]} 37... Qxh4 {[%clk 0:00:37.4]} 38. Rd8+ {[%clk 0:00:02.6]} 38... Kh7
{[%clk 0:00:36.7]} 39. Qa8 {[%clk 0:00:03.3]} 39... Qg4+ {[%clk 0:00:26.2]} 40.
Kf1 {[%clk 0:00:03.7]} 40... g5 {[%clk 0:00:25.3]} 41. Rh8+ {[%clk 0:00:03.3]}
41... Kg6 {[%clk 0:00:25]} 42. Qe8+ {[%clk 0:00:04]} 42... Rf7 {[%clk
0:00:25.1]} 43. Rf8 {[%clk 0:00:04.3]} 43... Qd1+ {[%clk 0:00:22.3]} 44. Kg2
{[%clk 0:00:04.1]} 44... Qg4+ {[%clk 0:00:22.4]} 45. Kf1 {[%clk 0:00:04.2]}
45... Qd1+ {[%clk 0:00:17.6]} 46. Kg2 {[%clk 0:00:04.4]} 46... Qd5+ {[%clk
0:00:09.8]} 47. Kf1 {[%clk 0:00:03.9]} 47... Qd7 {[%clk 0:00:08.3]} 48. Qxd7
{[%clk 0:00:01.6]} 48... Rxd7 {[%clk 0:00:09.2]} 49. Re8 {[%clk 0:00:01.7]}
49... Kf5 {[%clk 0:00:08.9]} 50. fxg5 {[%clk 0:00:01.6]} 50... hxg5 {[%clk
0:00:07.7]} 51. Kg2 {[%clk 0:00:01.9]} 51... Kxe5 {[%clk 0:00:08.2]} 52. Kg3
{[%clk 0:00:01.3]} 52... Kf5 {[%clk 0:00:08.3]} 53. f3 {[%clk 0:00:01.3]} 53...
g6 {[%clk 0:00:08.1]} 54. Rg8 {[%clk 0:00:01.3]} 54... Ke5 {[%clk 0:00:08.6]}
55. Rf8 {[%clk 0:00:01.9]} 55... Rd2 {[%clk 0:00:08.3]} 56. Rg8 {[%clk 0:00:02]}
56... Rxa2 {[%clk 0:00:08.4]} 57. Rxg6 {[%clk 0:00:02.7]} 57... Kf5 {[%clk
0:00:09]} 58. Rg7 {[%clk 0:00:03]} 58... a5 {[%clk 0:00:08.9]} 59. Rf7+ {[%clk
0:00:03.5]} 59... Kg6 {[%clk 0:00:09.2]} 60. Re7 {[%clk 0:00:03.7]} 60... Kf6
{[%clk 0:00:09.2]} 61. Ra7 {[%clk 0:00:04.1]} 61... Rb2 {[%clk 0:00:09.6]} 62.
Rxa5 {[%clk 0:00:03.8]} 62... Rxb3 {[%clk 0:00:10.1]} 63. Rc5 {[%clk 0:00:03.9]}
63... Ra3 {[%clk 0:00:09.3]} 64. Rb5 {[%clk 0:00:04.3]} 64... e5 {[%clk
0:00:09.8]} 65. Rb6+ {[%clk 0:00:04]} 65... Kf5 {[%clk 0:00:10]} 66. Rb5 {[%clk
0:00:03.4]} 66... g4 {[%clk 0:00:10.3]} 67. Kg2 {[%clk 0:00:01.5]} 67... Rxf3
{[%clk 0:00:08.5]} 68. Rb4 {[%clk 0:00:01.3]} 68... Rf4 {[%clk 0:00:08]} 69. Rb5
{[%clk 0:00:01.5]} 69... Rd4 {[%clk 0:00:07.8]} 70. Rb8 {[%clk 0:00:01.6]} 70...
Rd6 {[%clk 0:00:07.1]} 71. Rf8+ {[%clk 0:00:01.6]} 71... Rf6 {[%clk 0:00:07.4]}
72. Rb8 {[%clk 0:00:02.3]} 72... Ke4 {[%clk 0:00:07.6]} 73. Kg3 {[%clk
0:00:02.2]} 73... Rg6 {[%clk 0:00:05.4]} 74. Rb4+ {[%clk 0:00:02.3]} 74... Kf5
{[%clk 0:00:05.7]} 75. Ra4 {[%clk 0:00:02.5]} 75... Rg7 {[%clk 0:00:03.2]} 76.
Rb4 {[%clk 0:00:02.5]} 76... Rc7 {[%clk 0:00:03.1]} 77. Ra4 {[%clk 0:00:02.5]}
77... Rc3+ {[%clk 0:00:03.1]} 78. Kg2 {[%clk 0:00:03.2]} 78... e4 {[%clk
0:00:03.5]} 79. Rb4 {[%clk 0:00:03.6]} 79... Kf4 {[%clk 0:00:03.1]} 80. Ra4
{[%clk 0:00:04]} 80... Rc2+ {[%clk 0:00:03.6]} 81. Kg1 {[%clk 0:00:03.4]} 81...
Kf3 {[%clk 0:00:04.1]} 82. Ra3+ {[%clk 0:00:02.9]} 82... e3 {[%clk 0:00:04.5]}
0-1

[Event "*** SCC Grand Prix: Titled Tuesday Blitz"]
[Site "Chess.com"]
[Date "2020.09.08"]
[Round "1"]
[White "MPGM"]
[Black "RamyresCoelho"]
[Result "1-0"]
[WhiteElo "2473"]
[BlackElo "1778"]
[TimeControl "180+1"]
[EndTime "10:09:09 PDT"]
[Termination "MPGM won by checkmate"]

1. d4 {[%clk 0:02:59.9]} 1... Nf6 {[%clk 0:02:59.9]} 2. c4 {[%clk 0:02:59.4]}
2... g6 {[%clk 0:02:59.7]} 3. Nc3 {[%clk 0:02:59]} 3... d5 {[%clk 0:02:59.9]} 4.
cxd5 {[%clk 0:02:58.8]} 4... Nxd5 {[%clk 0:03:00.8]} 5. e4 {[%clk 0:02:59.2]}
5... Nxc3 {[%clk 0:03:00.7]} 6. bxc3 {[%clk 0:03:00.1]} 6... Bg7 {[%clk
0:03:01.6]} 7. Bc4 {[%clk 0:02:59.4]} 7... O-O {[%clk 0:03:02.5]} 8. Ne2 {[%clk
0:02:59.6]} 8... c5 {[%clk 0:03:02.7]} 9. O-O {[%clk 0:02:57.9]} 9... cxd4
{[%clk 0:03:02]} 10. cxd4 {[%clk 0:02:57.8]} 10... Nc6 {[%clk 0:03:00.9]} 11.
Be3 {[%clk 0:02:57.3]} 11... Na5 {[%clk 0:02:58.8]} 12. Bd3 {[%clk 0:02:54.9]}
12... b6 {[%clk 0:02:57.2]} 13. Rc1 {[%clk 0:02:48.9]} 13... Bb7 {[%clk
0:02:57]} 14. Qd2 {[%clk 0:02:44.1]} 14... Rc8 {[%clk 0:02:55]} 15. h4 {[%clk
0:02:36.9]} 15... e5 {[%clk 0:02:47.5]} 16. Rxc8 {[%clk 0:02:18.8]} 16... Bxc8
{[%clk 0:02:43.6]} 17. dxe5 {[%clk 0:01:42.2]} 17... Qxh4 {[%clk 0:02:31.9]} 18.
Bg5 {[%clk 0:01:37.5]} 18... Qg4 {[%clk 0:02:25.3]} 19. f4 {[%clk 0:01:05.2]}
19... Qd7 {[%clk 0:02:15.4]} 20. Rd1 {[%clk 0:01:01.2]} 20... h6 {[%clk
0:02:13.6]} 21. Bf6 {[%clk 0:00:58.5]} 21... Bxf6 {[%clk 0:02:13.1]} 22. exf6
{[%clk 0:00:59.4]} 22... Rd8 {[%clk 0:02:10.5]} 23. Qc3 {[%clk 0:00:23.8]} 23...
Ba6 {[%clk 0:02:05.2]} 24. Bc2 {[%clk 0:00:21.7]} 24... Qe8 {[%clk 0:01:40.4]}
25. Rxd8 {[%clk 0:00:20.8]} 25... Qxd8 {[%clk 0:01:41.3]} 26. Ng3 {[%clk
0:00:21]} 26... Bc4 {[%clk 0:01:09.3]} 27. f5 {[%clk 0:00:18.7]} 27... Qc7
{[%clk 0:01:00.5]} 28. fxg6 {[%clk 0:00:14.9]} 28... Qc5+ {[%clk 0:00:55.8]} 29.
Kh2 {[%clk 0:00:14.4]} 29... fxg6 {[%clk 0:00:54.2]} 30. e5 {[%clk 0:00:14.4]}
30... Bxa2 {[%clk 0:00:46.4]} 31. Qd3 {[%clk 0:00:13.3]} 31... Bf7 {[%clk
0:00:40.7]} 32. Qd8+ {[%clk 0:00:12.9]} 32... Qf8 {[%clk 0:00:41.1]} 33. Qd7
{[%clk 0:00:09.5]} 33... Qe8 {[%clk 0:00:30.2]} 34. Qxe8+ {[%clk 0:00:08.9]}
34... Bxe8 {[%clk 0:00:31.1]} 35. e6 {[%clk 0:00:09.5]} 35... Nc6 {[%clk
0:00:29.5]} 36. Bb3 {[%clk 0:00:05.6]} 36... Kf8 {[%clk 0:00:24.2]} 37. f7
{[%clk 0:00:05.7]} 37... Bxf7 {[%clk 0:00:23.4]} 38. exf7 {[%clk 0:00:06.6]}
38... Ne5 {[%clk 0:00:23.7]} 39. Ne4 {[%clk 0:00:06.9]} 39... Nxf7 {[%clk
0:00:24.1]} 40. Nf6 {[%clk 0:00:06]} 40... Kg7 {[%clk 0:00:22.2]} 41. Nd7 {[%clk
0:00:06]} 41... Nd6 {[%clk 0:00:19.2]} 42. Kg3 {[%clk 0:00:05.7]} 42... Nf5+
{[%clk 0:00:17.7]} 43. Kf4 {[%clk 0:00:05.8]} 43... Nd4 {[%clk 0:00:17.9]} 44.
Bd1 {[%clk 0:00:04.7]} 44... Ne6+ {[%clk 0:00:17]} 45. Ke5 {[%clk 0:00:04.9]}
45... Nc5 {[%clk 0:00:16.8]} 46. Nxc5 {[%clk 0:00:04.6]} 46... bxc5 {[%clk
0:00:17.6]} 47. Kd5 {[%clk 0:00:05.2]} 47... Kf6 {[%clk 0:00:17.4]} 48. Kxc5
{[%clk 0:00:05.3]} 48... Kf5 {[%clk 0:00:17.6]} 49. Bc2+ {[%clk 0:00:04.6]}
49... Kg5 {[%clk 0:00:17.4]} 50. Kd4 {[%clk 0:00:05.2]} 50... a5 {[%clk
0:00:17.1]} 51. Ke3 {[%clk 0:00:05.4]} 51... h5 {[%clk 0:00:14.1]} 52. Kf3
{[%clk 0:00:05.1]} 52... Kf6 {[%clk 0:00:13.6]} 53. Kf4 {[%clk 0:00:04.6]} 53...
g5+ {[%clk 0:00:13.3]} 54. Ke4 {[%clk 0:00:05.1]} 54... h4 {[%clk 0:00:10.9]}
55. Kf3 {[%clk 0:00:04.4]} 55... Ke5 {[%clk 0:00:09.9]} 56. Kg4 {[%clk
0:00:04.2]} 56... Kf6 {[%clk 0:00:06.4]} 57. Ba4 {[%clk 0:00:02.7]} 57... Kg6
{[%clk 0:00:06]} 58. Bb3 {[%clk 0:00:03.4]} 58... Kh6 {[%clk 0:00:06.9]} 59. Bc2
{[%clk 0:00:03.7]} 59... a4 {[%clk 0:00:06.2]} 60. Bxa4 {[%clk 0:00:03.3]} 60...
Kg7 {[%clk 0:00:06.4]} 61. Bc2 {[%clk 0:00:03.7]} 61... Kh6 {[%clk 0:00:06.3]}
62. Be4 {[%clk 0:00:04.1]} 62... h3 {[%clk 0:00:06.7]} 63. g3 {[%clk 0:00:03.7]}
63... h2 {[%clk 0:00:06.8]} 64. Kh3 {[%clk 0:00:04]} 64... Kh5 {[%clk
0:00:06.1]} 65. Kxh2 {[%clk 0:00:04.1]} 65... Kg4 {[%clk 0:00:06.8]} 66. Kg2
{[%clk 0:00:04.7]} 66... Kh5 {[%clk 0:00:06.8]} 67. Bf3+ {[%clk 0:00:05.2]}
67... g4 {[%clk 0:00:06.7]} 68. Bd1 {[%clk 0:00:06.1]} 68... Kg5 {[%clk
0:00:07.6]} 69. Kf2 {[%clk 0:00:06.7]} 69... Kf5 {[%clk 0:00:08]} 70. Ke3 {[%clk
0:00:07.4]} 70... Kg5 {[%clk 0:00:08.9]} 71. Ke4 {[%clk 0:00:08]} 71... Kh5
{[%clk 0:00:09.2]} 72. Kf4 {[%clk 0:00:08.7]} 72... Kh6 {[%clk 0:00:09.4]} 73.
Bxg4 {[%clk 0:00:09.6]} 73... Kg6 {[%clk 0:00:09.7]} 74. Bf3 {[%clk 0:00:10.5]}
74... Kh6 {[%clk 0:00:10.6]} 75. g4 {[%clk 0:00:11.3]} 75... Kg6 {[%clk
0:00:11.5]} 76. g5 {[%clk 0:00:12.2]} 76... Kg7 {[%clk 0:00:11.8]} 77. Be4
{[%clk 0:00:12.7]} 77... Kg8 {[%clk 0:00:11.4]} 78. Kf5 {[%clk 0:00:13.2]} 78...
Kh8 {[%clk 0:00:12.3]} 79. Kf6 {[%clk 0:00:12.6]} 79... Kg8 {[%clk 0:00:12.3]}
80. g6 {[%clk 0:00:12.5]} 80... Kh8 {[%clk 0:00:13.2]} 81. g7+ {[%clk
0:00:12.3]} 81... Kg8 {[%clk 0:00:13.3]} 82. Bd5+ {[%clk 0:00:13.1]} 82... Kh7
{[%clk 0:00:13.1]} 83. g8=Q+ {[%clk 0:00:14]} 83... Kh6 {[%clk 0:00:14]} 84.
Qg6# {[%clk 0:00:14.7]} 1-0

[Event "*** SCC Grand Prix: Titled Tuesday Blitz"]
[Site "Chess.com"]
[Date "2020.09.08"]
[Round "1"]
[White "Agibileg"]
[Black "Politov_Pavel"]
[Result "1-0"]
[WhiteElo "2589"]
[BlackElo "2262"]
[TimeControl "180+1"]
[EndTime "10:09:17 PDT"]
[Termination "Agibileg won on time"]

1. d4 {[%clk 0:02:59.7]} 1... Nf6 {[%clk 0:02:53.9]} 2. c4 {[%clk 0:02:58]} 2...
e6 {[%clk 0:02:52.9]} 3. Nc3 {[%clk 0:02:57.1]} 3... Bb4 {[%clk 0:02:52.6]} 4.
Qc2 {[%clk 0:02:57]} 4... c5 {[%clk 0:02:51.8]} 5. dxc5 {[%clk 0:02:55.8]} 5...
Bxc5 {[%clk 0:02:41.5]} 6. Nf3 {[%clk 0:02:42.9]} 6... O-O {[%clk 0:02:38.7]} 7.
e3 {[%clk 0:02:40.9]} 7... b6 {[%clk 0:02:38.3]} 8. Be2 {[%clk 0:02:39.2]} 8...
Bb7 {[%clk 0:02:38.4]} 9. O-O {[%clk 0:02:39.5]} 9... d5 {[%clk 0:02:38.4]} 10.
cxd5 {[%clk 0:02:38.9]} 10... Nxd5 {[%clk 0:02:38.7]} 11. Nxd5 {[%clk
0:02:36.4]} 11... Bxd5 {[%clk 0:02:26.7]} 12. a3 {[%clk 0:02:29.4]} 12... Qf6
{[%clk 0:02:21.6]} 13. e4 {[%clk 0:02:26.4]} 13... Bb7 {[%clk 0:02:18.1]} 14. b4
{[%clk 0:02:08.5]} 14... Qxa1 {[%clk 0:02:03.4]} 15. Bb2 {[%clk 0:02:08.7]}
15... Qxf1+ {[%clk 0:01:45.3]} 16. Bxf1 {[%clk 0:02:09.6]} 16... Bd6 {[%clk
0:01:39.4]} 17. e5 {[%clk 0:01:55.6]} 17... Rc8 {[%clk 0:01:35.8]} 18. Qd1
{[%clk 0:01:25.7]} 18... Be7 {[%clk 0:01:35.2]} 19. b5 {[%clk 0:01:25.8]} 19...
Bd5 {[%clk 0:01:29.9]} 20. Nd4 {[%clk 0:01:12.6]} 20... Nd7 {[%clk 0:01:28]} 21.
Nc6 {[%clk 0:01:12.4]} 21... Bc5 {[%clk 0:01:11]} 22. Bd4 {[%clk 0:01:00.1]}
22... Bxc6 {[%clk 0:00:59.4]} 23. bxc6 {[%clk 0:00:57.8]} 23... Rxc6 {[%clk
0:00:59.1]} 24. Bxc5 {[%clk 0:00:30]} 24... Nxc5 {[%clk 0:00:57.5]} 25. Bb5
{[%clk 0:00:26.5]} 25... Rcc8 {[%clk 0:00:55.7]} 26. h3 {[%clk 0:00:24.2]} 26...
Rd8 {[%clk 0:00:55.7]} 27. Qg4 {[%clk 0:00:21.3]} 27... Rac8 {[%clk 0:00:45.6]}
28. h4 {[%clk 0:00:19.9]} 28... h6 {[%clk 0:00:43.6]} 29. h5 {[%clk 0:00:19.6]}
29... Rd5 {[%clk 0:00:38.4]} 30. f4 {[%clk 0:00:18.5]} 30... Rcd8 {[%clk
0:00:35.8]} 31. Be2 {[%clk 0:00:18.3]} 31... Rd4 {[%clk 0:00:33.4]} 32. Qg3
{[%clk 0:00:15.4]} 32... Nd3 {[%clk 0:00:31.4]} 33. Bxd3 {[%clk 0:00:13.2]}
33... Rxd3 {[%clk 0:00:31.6]} 34. Qh4 {[%clk 0:00:13.6]} 34... R8d7 {[%clk
0:00:25.5]} 35. a4 {[%clk 0:00:14]} 35... R3d4 {[%clk 0:00:22]} 36. a5 {[%clk
0:00:13.1]} 36... bxa5 {[%clk 0:00:21.7]} 37. Qf2 {[%clk 0:00:13.2]} 37... a4
{[%clk 0:00:20.2]} 38. Qe3 {[%clk 0:00:13.7]} 38... Rd3 {[%clk 0:00:19.6]} 39.
Qc5 {[%clk 0:00:13]} 39... a3 {[%clk 0:00:19.9]} 40. Qc8+ {[%clk 0:00:11.9]}
40... Rd8 {[%clk 0:00:20.8]} 41. Qc2 {[%clk 0:00:11.6]} 41... Rd2 {[%clk
0:00:20]} 42. Qa4 {[%clk 0:00:11.5]} 42... a2 {[%clk 0:00:20.9]} 43. Kh2 {[%clk
0:00:11.5]} 43... g6 {[%clk 0:00:20]} 44. hxg6 {[%clk 0:00:10.4]} 44... fxg6
{[%clk 0:00:20.9]} 45. Qxa7 {[%clk 0:00:10.6]} 45... h5 {[%clk 0:00:20.8]} 46.
Qa6 {[%clk 0:00:10.6]} 46... Kg7 {[%clk 0:00:20.9]} 47. Qa7+ {[%clk 0:00:10.7]}
47... Kh6 {[%clk 0:00:20.8]} 48. Kh3 {[%clk 0:00:09.3]} 48... R8d7 {[%clk
0:00:21.2]} 49. Qa8 {[%clk 0:00:08.8]} 49... R2d3+ {[%clk 0:00:21.4]} 50. g3
{[%clk 0:00:08.1]} 50... Kg7 {[%clk 0:00:21.7]} 51. Qxa2 {[%clk 0:00:08]} 51...
Rd2 {[%clk 0:00:22.1]} 52. Qxe6 {[%clk 0:00:08.5]} 52... R2d3 {[%clk 0:00:21.5]}
53. Qf6+ {[%clk 0:00:08.9]} 53... Kh7 {[%clk 0:00:20.8]} 54. e6 {[%clk
0:00:08.9]} 54... Rg7 {[%clk 0:00:20.6]} 55. e7 {[%clk 0:00:08.6]} 55... Re3
{[%clk 0:00:19.8]} 56. Kh4 {[%clk 0:00:08.1]} 56... Rexe7 {[%clk 0:00:19.9]} 57.
Kg5 {[%clk 0:00:08.1]} 57... Ref7 {[%clk 0:00:20.2]} 58. Qe6 {[%clk 0:00:07.9]}
58... Rf5+ {[%clk 0:00:20.4]} 59. Kh4 {[%clk 0:00:08.4]} 59... Rgf7 {[%clk
0:00:20]} 60. Qd6 {[%clk 0:00:07.9]} 60... R7f6 {[%clk 0:00:19.6]} 61. Qe7+
{[%clk 0:00:07.8]} 61... Rf7 {[%clk 0:00:19.7]} 62. Qe8 {[%clk 0:00:08]} 62...
R7f6 {[%clk 0:00:19]} 63. Kh3 {[%clk 0:00:07.3]} 63... Rf7 {[%clk 0:00:18.2]}
64. Qe6 {[%clk 0:00:06.9]} 64... Kg7 {[%clk 0:00:15.9]} 65. Qe4 {[%clk 0:00:07]}
65... g5 {[%clk 0:00:14.8]} 66. fxg5 {[%clk 0:00:06.2]} 66... Rxg5 {[%clk
0:00:15.1]} 67. Qd4+ {[%clk 0:00:06.2]} 67... Kh7 {[%clk 0:00:11.2]} 68. Qd3+
{[%clk 0:00:06.6]} 68... Kh6 {[%clk 0:00:10.8]} 69. Qd6+ {[%clk 0:00:05.5]}
69... Rg6 {[%clk 0:00:10.2]} 70. Qd2+ {[%clk 0:00:06]} 70... Kh7 {[%clk
0:00:09.9]} 71. Kh4 {[%clk 0:00:06.4]} 71... Rf5 {[%clk 0:00:08.9]} 72. Qd7+
{[%clk 0:00:06.8]} 72... Kh6 {[%clk 0:00:06.1]} 73. Qxf5 {[%clk 0:00:07.2]}
73... Rg4+ {[%clk 0:00:05.8]} 74. Kh3 {[%clk 0:00:07.6]} 74... Rg6 {[%clk
0:00:05.3]} 75. Qf8+ {[%clk 0:00:07.9]} 75... Kh7 {[%clk 0:00:04.5]} 76. Kh4
{[%clk 0:00:08.2]} 76... Rg4+ {[%clk 0:00:03.2]} 77. Kxh5 {[%clk 0:00:08.6]}
77... Rxg3 {[%clk 0:00:03.5]} 78. Qf5+ {[%clk 0:00:08.5]} 78... Kg8 {[%clk
0:00:01.6]} 79. Qe6+ {[%clk 0:00:08.4]} 1-0

[Event "*** SCC Grand Prix: Titled Tuesday Blitz"]
[Site "Chess.com"]
[Date "2020.09.08"]
[Round "1"]
[White "ferdipy"]
[Black "blitzking1729"]
[Result "1-0"]
[WhiteElo "2336"]
[BlackElo "2634"]
[TimeControl "180+1"]
[EndTime "10:09:24 PDT"]
[Termination "ferdipy won by checkmate"]

1. e4 {[%clk 0:03:00.9]} 1... d6 {[%clk 0:02:56]} 2. d4 {[%clk 0:03:01.3]} 2...
Nf6 {[%clk 0:02:53.1]} 3. Nc3 {[%clk 0:03:02.2]} 3... e5 {[%clk 0:02:53.6]} 4.
Nf3 {[%clk 0:03:01.8]} 4... Nbd7 {[%clk 0:02:51.9]} 5. Bc4 {[%clk 0:03:01.2]}
5... Be7 {[%clk 0:02:50.5]} 6. O-O {[%clk 0:03:00.9]} 6... O-O {[%clk
0:02:46.7]} 7. h3 {[%clk 0:03:00.2]} 7... c6 {[%clk 0:02:46.4]} 8. a4 {[%clk
0:02:59.9]} 8... Qc7 {[%clk 0:02:44.9]} 9. Be3 {[%clk 0:02:59.5]} 9... b6 {[%clk
0:02:35.5]} 10. dxe5 {[%clk 0:02:51.5]} 10... Nxe5 {[%clk 0:02:32.9]} 11. Nxe5
{[%clk 0:02:51.2]} 11... dxe5 {[%clk 0:02:33.8]} 12. Qe2 {[%clk 0:02:48.2]}
12... Bb4 {[%clk 0:02:16.5]} 13. Na2 {[%clk 0:02:42]} 13... Be7 {[%clk
0:02:14.3]} 14. Nc3 {[%clk 0:02:40.6]} 14... h6 {[%clk 0:02:12.3]} 15. Rad1
{[%clk 0:02:37.1]} 15... Re8 {[%clk 0:02:07.7]} 16. Qf3 {[%clk 0:02:35.5]} 16...
Bb4 {[%clk 0:01:58.9]} 17. Bxh6 {[%clk 0:02:31.4]} 17... Bxc3 {[%clk 0:01:55.2]}
18. bxc3 {[%clk 0:02:32.3]} 18... Be6 {[%clk 0:01:55.4]} 19. Bd3 {[%clk
0:02:17.4]} 19... Nh7 {[%clk 0:01:43.8]} 20. Bc1 {[%clk 0:02:13.3]} 20... Nf8
{[%clk 0:01:41.5]} 21. Qg3 {[%clk 0:02:10.9]} 21... Ng6 {[%clk 0:01:40.7]} 22.
h4 {[%clk 0:02:10.1]} 22... Nf4 {[%clk 0:01:39.5]} 23. Rfe1 {[%clk 0:02:01.9]}
23... Rad8 {[%clk 0:01:37.5]} 24. Bf1 {[%clk 0:01:54.6]} 24... Rxd1 {[%clk
0:01:20.7]} 25. Rxd1 {[%clk 0:01:54]} 25... Rd8 {[%clk 0:01:21.1]} 26. Re1
{[%clk 0:01:42.3]} 26... a5 {[%clk 0:01:12]} 27. Qf3 {[%clk 0:01:39.5]} 27...
Qb8 {[%clk 0:00:49]} 28. g3 {[%clk 0:01:39.4]} 28... Ng6 {[%clk 0:00:47.2]} 29.
h5 {[%clk 0:01:38.3]} 29... Nf8 {[%clk 0:00:46]} 30. h6 {[%clk 0:01:37.4]} 30...
Nh7 {[%clk 0:00:45.1]} 31. hxg7 {[%clk 0:01:35.7]} 31... b5 {[%clk 0:00:42]} 32.
axb5 {[%clk 0:01:26.1]} 32... cxb5 {[%clk 0:00:42.9]} 33. Kg2 {[%clk 0:01:26.5]}
33... a4 {[%clk 0:00:40.2]} 34. Be2 {[%clk 0:01:22.4]} 34... a3 {[%clk
0:00:34.8]} 35. Bxa3 {[%clk 0:01:21.3]} 35... Bh3+ {[%clk 0:00:32.3]} 36. Kg1
{[%clk 0:01:12.4]} 36... Qb6 {[%clk 0:00:24.2]} 37. Qh5 {[%clk 0:00:54.6]} 37...
Be6 {[%clk 0:00:18.7]} 38. Kg2 {[%clk 0:00:51.5]} 38... Kxg7 {[%clk 0:00:15.3]}
39. Bc1 {[%clk 0:00:51]} 39... Rh8 {[%clk 0:00:11.7]} 40. Qxe5+ {[%clk
0:00:49.7]} 40... f6 {[%clk 0:00:10]} 41. Qd4 {[%clk 0:00:48.5]} 41... Qc6
{[%clk 0:00:06.8]} 42. Bf3 {[%clk 0:00:42.1]} 42... Qc7 {[%clk 0:00:04.9]} 43.
Bf4 {[%clk 0:00:40.8]} 43... Qc8 {[%clk 0:00:04.4]} 44. Ra1 {[%clk 0:00:41]}
44... Rd8 {[%clk 0:00:03.8]} 45. Ra7+ {[%clk 0:00:40.1]} 45... Bf7 {[%clk
0:00:03.8]} 46. Qe3 {[%clk 0:00:39.1]} 46... Kg8 {[%clk 0:00:02.6]} 47. e5
{[%clk 0:00:34.6]} 47... f5 {[%clk 0:00:01.9]} 48. e6 {[%clk 0:00:28.2]} 48...
Qxe6 {[%clk 0:00:02.1]} 49. Qc5 {[%clk 0:00:21.2]} 49... Qg6 {[%clk 0:00:01.5]}
50. Qc7 {[%clk 0:00:19.6]} 50... Re8 {[%clk 0:00:01.8]} 51. Bc6 {[%clk
0:00:18.9]} 51... Rf8 {[%clk 0:00:02]} 52. Bd6 {[%clk 0:00:17]} 52... Ng5 {[%clk
0:00:02.4]} 53. Bxf8 {[%clk 0:00:16.5]} 53... Qh5 {[%clk 0:00:02.8]} 54. Be7
{[%clk 0:00:12.9]} 54... Qh3+ {[%clk 0:00:02.8]} 55. Kg1 {[%clk 0:00:13.6]}
55... Ne4 {[%clk 0:00:02.9]} 56. Bxe4 {[%clk 0:00:13.5]} 56... fxe4 {[%clk
0:00:03.8]} 57. Qd8+ {[%clk 0:00:13.8]} 57... Kg7 {[%clk 0:00:03.5]} 58. Qf8+
{[%clk 0:00:14.4]} 58... Kg6 {[%clk 0:00:03.9]} 59. Bc5 {[%clk 0:00:13.6]} 59...
Qf5 {[%clk 0:00:03.9]} 60. Qxf7+ {[%clk 0:00:13.1]} 60... Qxf7 {[%clk
0:00:04.8]} 61. Rxf7 {[%clk 0:00:13.6]} 61... Kxf7 {[%clk 0:00:05.7]} 62. Kf1
{[%clk 0:00:14.3]} 62... Ke6 {[%clk 0:00:06.5]} 63. Ke2 {[%clk 0:00:14.9]} 63...
Kd5 {[%clk 0:00:07.4]} 64. Bb4 {[%clk 0:00:15.5]} 64... Kc4 {[%clk 0:00:08.3]}
65. Ke3 {[%clk 0:00:15.9]} 65... Kd5 {[%clk 0:00:09.2]} 66. f3 {[%clk
0:00:15.9]} 66... Ke5 {[%clk 0:00:10.1]} 67. fxe4 {[%clk 0:00:16.1]} 67... Ke6
{[%clk 0:00:11]} 68. Kd4 {[%clk 0:00:16.7]} 68... Kd7 {[%clk 0:00:10.9]} 69. Kc5
{[%clk 0:00:17.2]} 69... Ke6 {[%clk 0:00:11.6]} 70. Kxb5 {[%clk 0:00:18.1]}
70... Ke5 {[%clk 0:00:12.5]} 71. c4 {[%clk 0:00:18.3]} 71... Kxe4 {[%clk
0:00:13.4]} 72. c5 {[%clk 0:00:19.2]} 72... Kd5 {[%clk 0:00:13.9]} 73. c6 {[%clk
0:00:20.1]} 73... Ke6 {[%clk 0:00:14.7]} 74. c7 {[%clk 0:00:20.6]} 74... Kd7
{[%clk 0:00:15.6]} 75. Kb6 {[%clk 0:00:21.2]} 75... Kc8 {[%clk 0:00:16.5]} 76.
g4 {[%clk 0:00:20.9]} 76... Kd7 {[%clk 0:00:17.4]} 77. Kb7 {[%clk 0:00:21.5]}
77... Ke6 {[%clk 0:00:17.6]} 78. c8=Q+ {[%clk 0:00:21.8]} 78... Kf7 {[%clk
0:00:18.5]} 79. Qf5+ {[%clk 0:00:21.9]} 79... Kg7 {[%clk 0:00:18.6]} 80. Bc3+
{[%clk 0:00:21.7]} 80... Kh6 {[%clk 0:00:19]} 81. g5+ {[%clk 0:00:20.8]} 81...
Kh5 {[%clk 0:00:18.7]} 82. g6+ {[%clk 0:00:21.3]} 82... Kh6 {[%clk 0:00:18.9]}
83. Qf8+ {[%clk 0:00:14.1]} 83... Kxg6 {[%clk 0:00:18.4]} 84. Qg7+ {[%clk
0:00:14.7]} 84... Kf5 {[%clk 0:00:19.3]} 85. Qe5+ {[%clk 0:00:14.8]} 85... Kg6
{[%clk 0:00:18.7]} 86. Kc6 {[%clk 0:00:13.3]} 86... Kf7 {[%clk 0:00:18.5]} 87.
Qd6 {[%clk 0:00:12.8]} 87... Ke8 {[%clk 0:00:17.9]} 88. Qc7 {[%clk 0:00:12]}
88... Kf8 {[%clk 0:00:17.8]} 89. Kd6 {[%clk 0:00:12.4]} 89... Kg8 {[%clk
0:00:17.4]} 90. Qg7# {[%clk 0:00:12]} 1-0